fUSD/lending_fUSD_20240114
["ID","MTS","AMOUNT","RATE_DAILY","PERIOD"]
[311558902,1705239058722,-150.0,0.00036337,2]
[311558903,1705239058732,-500.0,0.00036356,7]
[311558904,1705239058741,-433.0,0.000364,25]
[311558905,1705239058750,-4858.20993382,0.00036401,7]
[311558906,1705239058759,-2501.95426146,0.00036401,7]
[311558907,1705239058770,-3188.94883228,0.00036401,7]
[311558908,1705239058779,-2639.82344324,0.00036401,7]
[311558909,1705239058788,-2037.64592753,0.00036401,7]
[311558910,1705239058797,-197.38,0.00036438,2]
[311558911,1705239058807,-8000.0,0.00036463,7]
[311558912,1705239058816,-151.0,0.00036468,7]
[311558913,1705239058825,-681.789717,0.00036468,7]
[311558914,1705239058834,-681.789717,0.00036468,7]
[311558915,1705239058844,-692.47742557,0.00036468,2]
[311558916,1705239058853,-873.23110883,0.00036468,2]
[311558917,1705239058862,-601.216148,0.00036468,7]
[311558918,1705239058873,-601.216151,0.00036468,7]
[311558919,1705239058882,-1887.12518063,0.0003647,3]
[311558920,1705239058892,-1974.95444241,0.00036474,2]
[311558921,1705239058902,-155.0,0.00036474,4]
[311558922,1705239058912,-150.0,0.00036475,4]
[311558923,1705239058921,-415.055616,0.00036479,7]
[311558924,1705239058930,-415.055612,0.00036479,7]
[311558925,1705239058940,-500.0,0.00036479,7]
[311558926,1705239058949,-500.0,0.00036479,7]
[311558927,1705239058958,-199.815239,0.00036479,7]
[311558928,1705239058968,-199.815244,0.00036479,7]
[311558929,1705239059137,-161.635064,0.00036479,7]
[311558930,1705239059166,-161.635055,0.00036479,7]
[311558931,1705239059175,-187.971555,0.00036479,7]
[311558932,1705239059184,-187.971564,0.00036479,7]
[311558933,1705239059193,-153.40198,0.00036479,7]
[311558934,1705239059202,-153.401976,0.00036479,7]
[311558935,1705239059211,-428.067621,0.00036479,7]
[311558936,1705239059220,-428.067619,0.00036479,7]
[311558937,1705239059230,-885.988555,0.00036479,7]
[311558938,1705239059239,-885.988553,0.00036479,7]
[311558939,1705239059248,-4941.53833641,0.0003649,10]
[311558940,1705239059257,-150.0,0.00036493,120]
[311558941,1705239059267,-4000.0,0.000365,3]
[311558942,1705239059276,-250.0,0.000365,7]
[311558943,1705239059286,-22296.47,0.000365,7]
[311558944,1705239059295,-6571.29,0.000365,7]
[311558945,1705239059304,-11149.18,0.000365,3]
[311558946,1705239059314,-12061.28,0.000365,7]
[311558947,1705239059323,-152.79566131,0.00036513,7]
[311558948,1705239059332,-157.28338151,0.00036516,7]
[311558949,1705239059341,-153.84,0.0003653,2]
[311558950,1705239059350,-379.75846953,0.00036534,7]
[311558951,1705239059359,-157.28338151,0.00036535,7]
[311558952,1705239059369,-172.5,0.00036538,7]
[311558953,1705239059378,-1259.86623338,0.00036544,7]
[311558954,1705239059387,-303.56,0.0003655,2]
[311558955,1705239059397,-175.08860955,0.00036555,7]
[311558956,1705239059406,-171.397115,0.00036572,2]
[311558957,1705239059415,-172.335588,0.00036572,2]
[311558958,1705239059424,-156.617151,0.00036572,2]
[311558959,1705239059433,-4967.78656,0.00036572,2]
[311558960,1705239059442,-805.991087,0.00036572,2]
[311558961,1705239059451,-171.397116,0.00036572,2]
[311558962,1705239059461,-928.93971,0.00036572,2]
[311558963,1705239059470,-182.410196,0.00036572,2]
[311558964,1705239059479,-171.389841,0.00036572,2]
[311558965,1705239059488,-190.449161,0.00036572,2]
[311558966,1705239059497,-161.340059,0.00036572,2]
[311558967,1705239059506,-167.0,0.00036578,7]
[311558968,1705239059515,-150.0,0.00036578,7]
[311558969,1705239059524,-150.0,0.00036578,7]
[311558970,1705239059533,-156.35152316,0.0003658,7]
[311558971,1705239059542,-155.88867443,0.00036584,7]
[311558972,1705239059551,-1000.0,0.000366,6]
[311558973,1705239059561,-150.0,0.00036608,120]
[311558974,1705239059570,-1036.21,0.00036613,15]
[311558975,1705239059578,-1362.945455,0.00036621,7]
[311558976,1705239059587,-378.57658537,0.00036628,7]
[311558977,1705239059596,-378.57658537,0.00036631,7]
[311558978,1705239059605,-157.28338151,0.00036684,7]
[311558979,1705239059614,-52288.0,0.0003669,3]
[311558980,1705239059624,-423.76252284,0.00036693,7]
[311558981,1705239059633,-10904.61049246,0.000367,2]
[311558982,1705239059642,-22296.47,0.000367,7]
[311558983,1705239059651,-6571.29,0.000367,7]
[311558984,1705239059660,-432.0,0.000367,2]
[311558985,1705239059670,-200.0,0.000367,2]
[311558986,1705239059679,-152.0,0.00036703,3]
[311558987,1705239059688,-1603.280317,0.00036712,14]
[311558988,1705239059697,-9888.87739539,0.00036713,2]
[311558989,1705239059706,-16053.70080153,0.00036721,2]
[311558990,1705239059715,-12794.77219403,0.00036721,2]
[311558991,1705239059725,-1210.0,0.00036721,2]
[311558992,1705239059736,-2105.07618465,0.00036721,2]
[311558993,1705239059745,-332.09496905,0.00036721,2]
[311558994,1705239059755,-2868.76198899,0.00036721,2]
[311558995,1705239059764,-232.93370772,0.00036721,7]
[311558996,1705239059774,-4354.73920961,0.00036721,2]
[311558997,1705239059784,-1450.6868081,0.00036721,2]
[311558998,1705239059794,-7034.15408358,0.00036721,2]
[311558999,1705239059804,-2608.75262736,0.00036721,2]
[311559000,1705239059814,-2608.33233751,0.00036721,2]
[311559001,1705239059823,-2341.76692576,0.00036721,2]
[311559002,1705239059832,-2548.99068933,0.00036721,2]
[311559003,1705239059841,-101109.65250852,0.00036721,2]
[311559004,1705239059851,-918.17443809,0.00036721,3]
[311559005,1705239059860,-3099.97135806,0.00036721,2]
[311559006,1705239059869,-166.25679352,0.00036721,2]
[311559007,1705239059879,-9942.23225461,0.00036721,2]
[311559008,1705239059888,-28532.43156358,0.00036721,15]
[311559009,1705239059897,-983.33608892,0.00036721,2]
[311559010,1705239059906,-3637.30157108,0.00036721,2]
[311559011,1705239059915,-11281.19677078,0.00036721,2]
[311559012,1705239059925,-1019.60220594,0.00036721,2]
[311559013,1705239059936,-3536.3282676,0.00036721,2]
[311559014,1705239059946,-172.35090964,0.00036721,2]
[311559015,1705239059955,-996.68900178,0.00036721,2]
[311559016,1705239059964,-160.19327412,0.00036721,2]
[311559017,1705239059973,-8806.72158942,0.00036721,2]
[311559018,1705239059983,-1250.6210434,0.00036721,2]
[311559019,1705239059992,-4714.91931465,0.00036721,2]
[311559020,1705239060001,-1050.59236597,0.00036721,2]
[311559021,1705239060011,-6708.24898868,0.00036721,2]
[311559022,1705239060019,-21647.0586769,0.00036721,2]
[311559023,1705239060030,-12242.0461041,0.00036721,2]
[311559024,1705239060040,-1832.7563721,0.00036721,2]
[311559025,1705239060049,-643.0,0.00036721,2]
[311559026,1705239060059,-925.3591268,0.00036721,2]
[311559027,1705239060068,-8387.21543599,0.00036721,2]
[311559028,1705239060078,-181.86607891,0.00036721,13]
[311559029,1705239060088,-546.56786075,0.00036721,2]
[311559030,1705239060097,-761.55587484,0.00036721,2]
[311559031,1705239060106,-196.65076475,0.00036721,2]
[311559032,1705239060115,-198.79974342,0.00036721,2]
[311559033,1705239060125,-4269.11276967,0.00036721,2]
[311559034,1705239060134,-550.0,0.00036721,2]
[311559035,1705239060143,-996.97098785,0.00036721,2]
[311559036,1705239060152,-10217.36750624,0.00036721,2]
[311559037,1705239060162,-161585.60460284,0.00036721,2]
[311559038,1705239060171,-38570.59946381,0.00036721,2]
[311559039,1705239060180,-9613.07079987,0.00036721,15]
[311559040,1705239060189,-1750.29970558,0.00036721,2]
[311559041,1705239060198,-428.65742013,0.00036721,2]
[311559042,1705239060207,-1018.78318604,0.00036721,2]
[311559043,1705239060216,-4315.74021422,0.00036721,2]
[311559044,1705239060225,-20287.3526554,0.00036721,2]
[311559045,1705239060234,-2500.0,0.00036721,2]
[311559046,1705239060243,-553.27742484,0.00036721,2]
[311559047,1705239060253,-26544.04368195,0.00036721,2]
[311559048,1705239060261,-2272.61015668,0.00036721,2]
[311559049,1705239060270,-229.91164429,0.00036721,2]
[311559050,1705239060280,-514.83001874,0.00036721,2]
[311559051,1705239060289,-108847.97128897,0.00036721,2]
[311559052,1705239060299,-90105.94582875,0.00036721,7]
[311559053,1705239060308,-2249.40584687,0.00036721,7]
[311559054,1705239060318,-165076.6725234,0.00036721,2]
[311559055,1705239060327,-30000.0,0.00036721,2]
[311559056,1705239060336,-126820.18802394,0.00036721,2]
[311559057,1705239060345,-3763.36999013,0.00036721,3]
[311559058,1705239060354,-4671.82878569,0.00036721,7]
[311559059,1705239060363,-7376.49892328,0.00036721,7]
[311559060,1705239060373,-496.93965041,0.00036721,7]
[311559061,1705239060382,-388.1355464,0.00036721,7]
[311559062,1705239060391,-108027.14848249,0.00036721,7]
[311559063,1705239060400,-6596.02047851,0.00036721,2]
[311559064,1705239060410,-11777.73323015,0.00036721,7]
[311559065,1705239060420,-2256103.73079194,0.00036721,7]
[311559066,1705239060429,-50472.92205785,0.00036721,7]
[311559067,1705239060438,-44007.42518735,0.00036721,7]
[311559068,1705239060447,-643.569837,0.00036721,7]
[311559069,1705239060457,-203.13707352,0.00036721,7]
[311559070,1705239060466,-1017.35724489,0.00036721,7]
[311559071,1705239060475,-11792.94727859,0.00036721,7]
[311559072,1705239060484,-270.88409046,0.00036721,7]
[311559073,1705239060493,-273.63232609,0.00036721,21]
[311559074,1705239060502,-2554612.9949,0.00036721,7]
[311559075,1705239060511,-389.9994883,0.00036721,7]
[311559076,1705239060519,-8957.37367318,0.00036721,2]
[311559077,1705239060528,-42000.0,0.00036721,7]
[311559078,1705239060537,-1378.98668713,0.00036721,2]
[311559079,1705239060546,-1000.0,0.00036721,30]
[311559080,1705239060555,-240.0,0.00036721,120]
[311559081,1705239060564,-1000.0,0.00036721,30]
[311559082,1705239060573,-215.3982278,0.00036721,120]
[311559083,1705239060582,-240.5288929,0.00036721,120]
[311559084,1705239060591,-500.0,0.00036721,120]
[311559085,1705239060600,-3234.14115522,0.00036721,30]
[311559086,1705239060609,-152.49494159,0.00036721,30]
[311559087,1705239060618,-241.38585507,0.00036721,30]
[311559088,1705239060628,-256.42247166,0.00036721,30]
[311559089,1705239060637,-204.42154555,0.00036721,30]
[311559090,1705239060645,-196.70961442,0.00036721,30]
[311559091,1705239060655,-1080.29412924,0.00036721,120]
[311559092,1705239060664,-176.00539654,0.00036721,120]
[311559093,1705239060673,-275.095601,0.00036721,120]
[311559094,1705239060682,-152.32544088,0.00036721,120]
[311559095,1705239060691,-14993.70711745,0.00036721,2]
[311559096,1705239060700,-1304.11545677,0.00036721,120]
[311559097,1705239060709,-272.74478259,0.00036721,60]
[311559098,1705239060718,-1810.89990586,0.00036721,120]
[311559099,1705239060726,-509.200583,0.00036721,120]
[311559100,1705239060737,-180.45664884,0.00036721,30]
[311559101,1705239060746,-342.38017495,0.00036721,30]
[311559102,1705239060756,-166.97441995,0.00036721,30]
[311559103,1705239060765,-172.53978884,0.00036721,30]
[311559104,1705239060774,-245.53595553,0.00036721,120]
[311559105,1705239060783,-180.07388272,0.00036721,60]
[311559106,1705239060792,-298.9120023,0.00036721,60]
[311559107,1705239060801,-222.31218242,0.00036721,30]
[311559108,1705239060810,-932.88075023,0.00036721,120]
[311559109,1705239060819,-213.10724325,0.00036721,30]
[311559110,1705239060829,-565.78553445,0.00036721,30]
[311559111,1705239060839,-167.0,0.00036721,120]
[311559112,1705239060848,-1694.55439974,0.00036721,120]
[311559113,1705239060857,-314.3383982,0.00036721,14]
[311559114,1705239060867,-432.4127816,0.00036721,2]
[311559115,1705239060880,-1466.7868121,0.00036721,30]
[311559116,1705239060889,-184.09992797,0.00036721,7]
[311559117,1705239060900,-3096.48442983,0.00036721,120]
[311559118,1705239060910,-1341.94535859,0.00036721,120]
[311559119,1705239060919,-635.27314824,0.00036721,30]
[311559120,1705239060930,-160.43232771,0.00036721,31]
[311559121,1705239060939,-2254.0,0.00036721,120]
[311559122,1705239060950,-4463.07391096,0.00036721,2]
[311559123,1705239060960,-229.48563246,0.00036721,2]
[311559124,1705239060970,-890.43516222,0.00036721,120]
[311559125,1705239060981,-300.0,0.00036721,57]
[311559126,1705239060992,-862.6442975,0.00036721,120]
[311559127,1705239061001,-3406.38138304,0.00036721,2]
[311559128,1705239061010,-40000.0,0.00036721,14]
[311559129,1705239061019,-1899.870432,0.00036721,30]
[311559130,1705239061028,-14720.0,0.00036721,4]
[311559131,1705239061036,-1276.328569,0.00036721,2]
[311559132,1705239061044,-1968.265822,0.00036721,30]
[311559133,1705239061053,-378.57658537,0.00036768,7]
[311559134,1705239061062,-58668.3386254,0.000368,7]
[311559135,1705239061073,-4858.20993382,0.0003681,7]
[311559136,1705239061080,-2501.95426146,0.0003681,7]
[311559137,1705239061088,-3188.94883228,0.0003681,7]
[311559138,1705239061097,-2639.82344324,0.0003681,7]
[311559139,1705239061107,-2037.64592753,0.0003681,7]
[311559140,1705239061118,-500.0,0.00036818,10]
[311559141,1705239061134,-500.0,0.00036818,10]
[311559142,1705239061145,-423.76252284,0.00036848,7]
[311559143,1705239061155,-1259.86623338,0.00036856,7]
[311559144,1705239061165,-155.88867443,0.0003686,7]
[311559145,1705239061175,-300.0,0.00036866,2]
[311559146,1705239061185,-300.0,0.00036866,2]
[311559147,1705239061196,-2000.8,0.0003687,2]
[311559148,1705239061206,-152.79566131,0.00036875,7]
[311559149,1705239061216,-168.64539598,0.00036896,7]
[311559150,1705239061225,-167.0,0.00036898,7]
[311559151,1705239061235,-150.0,0.00036898,7]
[311559152,1705239061244,-150.0,0.00036898,7]
[311559153,1705239061253,-255.0,0.000369,2]
[311559154,1705239061264,-1517.51295208,0.000369,2]
[311559155,1705239061275,-22296.47,0.000369,7]
[311559156,1705239061285,-6571.29,0.000369,7]
[311559157,1705239061295,-433.0,0.000369,26]
[311559158,1705239061306,-2524.60924845,0.000369,2]
[311559159,1705239061317,-2524.6092484,0.000369,2]
[311559160,1705239061327,-2524.6092484,0.000369,2]
[311559161,1705239061336,-2524.6092484,0.000369,2]
[311559162,1705239061345,-2524.6092484,0.000369,2]
[311559163,1705239061356,-2524.6092484,0.000369,2]
[311559164,1705239061366,-2524.6092484,0.000369,2]
[311559165,1705239061380,-2524.6092484,0.000369,2]
[311559166,1705239061389,-2524.6092484,0.000369,2]
[311559167,1705239061398,-378.57658537,0.00036905,7]
[311559168,1705239061407,-814.08725621,0.00036906,7]
[311559169,1705239061416,-2000.8,0.00036935,2]
[311559170,1705239061427,-153.75176476,0.00036935,7]
[311559171,1705239061436,-814.08725621,0.00036977,7]
[311559172,1705239061445,-210.0,0.0003698,2]
[311559173,1705239061455,-13428.58945952,0.00036986,4]
[311559174,1705239061464,-13428.58945952,0.00036986,4]
[311559175,1705239061473,-13428.58945952,0.00036986,4]
[311559176,1705239061482,-13428.58945952,0.00036986,4]
[311559177,1705239061492,-13428.58945952,0.00036986,4]
[311559178,1705239061502,-13428.58945952,0.00036986,4]
[311559179,1705239061511,-13428.58945952,0.00036986,4]
[311559180,1705239061522,-13428.58945952,0.00036986,4]
[311559181,1705239061532,-13428.58945952,0.00036986,4]
[311559182,1705239061543,-13428.58845952,0.00036986,4]
[311559183,1705239061554,-155.0,0.00036987,2]
[311559184,1705239061565,-378.57658537,0.00036988,7]
[311559185,1705239061575,-12147.0,0.0003699,3]
[311559186,1705239061585,-814.08725621,0.00036998,7]
[311559187,1705239061595,-200000.0,0.00037,7]
[311559188,1705239061605,-309.52299924,0.00037,4]
[311559189,1705239061615,-8000.0,0.00037,2]
[311559190,1705239061628,-100000.0,0.00037,12]
[311559191,1705239061639,-500.0,0.00037,15]
[311559192,1705239061649,-239.171138,0.00037,4]
[311559193,1705239061658,-1996.0,0.00037,4]
[311559194,1705239061668,-20122.531198,0.00037,4]
[311559195,1705239061678,-668.14027644,0.00037,7]
[311559196,1705239061687,-1000.0,0.00037,7]
[311559197,1705239061697,-340.08491371,0.00037,7]
[311559198,1705239061707,-150.0,0.00037,15]
[311559199,1705239061717,-2000.0,0.00037,2]
[311559200,1705239061729,-28346.70124316,0.00037,15]
[311559201,1705239061741,-2007.53954221,0.00037,2]
[311559202,1705239061752,-5000.0,0.00037,2]
[311559203,1705239061764,-164.85865129,0.00037,30]
[311559204,1705239061775,-600.0,0.00037,38]
[311559205,1705239061784,-1311635.55879373,0.00037,2]
[311559206,1705239061793,-487.54374635,0.00037,3]
[311559207,1705239061804,-4000.0,0.00037,2]
[311559208,1705239061815,-236.43333565,0.00037,30]
[311559209,1705239061824,-500.46,0.00037,15]
[311559210,1705239061833,-161.011909,0.00037,9]
[311559211,1705239061842,-1038.8221014,0.00037,5]
[311559212,1705239061851,-378.57658537,0.00037006,7]
[311559213,1705239061860,-171.397115,0.00037029,2]
[311559214,1705239061870,-4967.78656,0.00037029,2]
[311559215,1705239061881,-805.991087,0.00037029,2]
[311559216,1705239061892,-171.397116,0.00037029,2]
[311559217,1705239061901,-928.93971,0.00037029,2]
[311559218,1705239061911,-10000.0,0.00037075,2]
[311559219,1705239061920,-378.57658537,0.00037101,7]
[311559220,1705239061930,-1259.86623338,0.00037106,7]
[311559221,1705239061942,-10533.8276703,0.00037111,2]
[311559222,1705239061952,-155.93501535,0.00037111,7]
[311559223,1705239061961,-168.64539598,0.00037117,7]
[311559224,1705239061971,-378.57658537,0.00037124,7]
[311559225,1705239061980,-156.06596588,0.00037157,7]
[311559226,1705239061990,-378.57658537,0.00037164,7]
[311559227,1705239062000,-1259.86623338,0.00037175,7]
[311559228,1705239062008,-157.28338151,0.0003718,7]
[311559229,1705239062017,-171.389841,0.00037181,2]
[311559230,1705239062027,-5552.83,0.000372,3]
[311559231,1705239062036,-5552.83,0.000372,3]
[311559232,1705239062045,-5552.83,0.000372,3]
[311559233,1705239062054,-5552.83,0.000372,3]
[311559234,1705239062063,-5552.83,0.000372,3]
[311559235,1705239062072,-5552.83,0.000372,3]
[311559236,1705239062081,-5552.83,0.000372,3]
[311559237,1705239062090,-5552.83,0.000372,3]
[311559238,1705239062100,-5552.83,0.000372,3]
[311559239,1705239062110,-5552.83,0.000372,3]
[311559240,1705239062120,-5552.83,0.000372,3]
[311559241,1705239062131,-5552.83,0.000372,3]
[311559242,1705239062141,-5552.83,0.000372,3]
[311559243,1705239062151,-5552.83,0.000372,3]
[311559244,1705239062162,-5552.83,0.000372,3]
[311559245,1705239062173,-5552.83,0.000372,3]
[311559246,1705239062183,-5552.83,0.000372,3]
[311559247,1705239062193,-5552.83,0.000372,3]
[311559248,1705239062204,-5552.83,0.000372,3]
[311559249,1705239062214,-5552.83,0.000372,3]
[311559250,1705239062226,-156.06596588,0.00037201,7]
[311559251,1705239062238,-150.0,0.00037203,2]
[311559252,1705239062249,-1259.86623338,0.00037206,7]
[311559253,1705239062259,-150.0,0.00037211,120]
[311559254,1705239062270,-167.0,0.00037219,7]
[311559255,1705239062279,-150.0,0.00037219,7]
[311559256,1705239062289,-150.0,0.00037219,7]
[311559257,1705239062300,-4858.20993382,0.00037219,7]
[311559258,1705239062311,-2501.95426146,0.00037219,7]
[311559259,1705239062323,-3188.94883228,0.00037219,7]
[311559260,1705239062336,-2639.82344324,0.00037219,7]
[311559261,1705239062347,-2037.64592753,0.00037219,7]
[311559262,1705239062359,-809.29907843,0.0003724,4]
[311559263,1705239062372,-156.06596588,0.00037244,7]
[311559264,1705239062382,-1259.86623338,0.00037256,7]
[311559265,1705239062391,-814.08725621,0.0003726,7]
[311559266,1705239062402,-814.08725621,0.00037275,7]
[311559267,1705239062412,-300.0,0.000373,2]
[311559268,1705239062422,-432.0,0.000373,7]
[311559269,1705239062433,-10000.0,0.00037322,3]
[311559270,1705239062443,-155.93501535,0.00037328,7]
[311559271,1705239062453,-648.63341688,0.00037366,7]
[311559272,1705239062464,-379.75846953,0.00037368,7]
[311559273,1705239062475,-156.06596588,0.00037369,7]
[311559274,1705239062485,-303.56,0.00037375,2]
[311559275,1705239062496,-1884.84412128,0.000374,5]
[311559276,1705239062506,-433.0,0.000374,26]
[311559277,1705239062517,-155.88867443,0.00037421,7]
[311559278,1705239062527,-1259.86623338,0.00037436,7]
[311559279,1705239062538,-153.84,0.00037443,2]
[311559280,1705239062547,-379.75846953,0.00037478,7]
[311559281,1705239062556,-171.397115,0.00037486,2]
[311559282,1705239062565,-4967.78656,0.00037486,2]
[311559283,1705239062575,-805.991087,0.00037486,2]
[311559284,1705239062585,-171.397116,0.00037486,2]
[311559285,1705239062594,-928.93971,0.00037486,2]
[311559286,1705239062604,-657.26697925,0.000375,2]
[311559287,1705239062614,-450.0,0.000375,3]
[311559288,1705239062624,-450.0,0.000375,3]
[311559289,1705239062635,-2200.0,0.000375,3]
[311559290,1705239062645,-1490.0,0.000375,12]
[311559291,1705239062655,-300.0,0.000375,2]
[311559292,1705239062665,-150.0,0.000375,14]
[311559293,1705239062675,-4000.0,0.000375,3]
[311559294,1705239062686,-1214.0,0.000375,2]
[311559295,1705239062697,-52399.0,0.000375,2]
[311559296,1705239062706,-5000.0,0.000375,25]
[311559297,1705239062716,-158.46488988,0.00037524,7]
[311559298,1705239062725,-1259.86623338,0.00037525,7]
[311559299,1705239062734,-159.84201059,0.00037533,7]
[311559300,1705239062744,-167.0,0.00037539,7]
[311559301,1705239062753,-150.0,0.00037539,7]
[311559302,1705239062763,-150.0,0.00037539,7]
[311559303,1705239062772,-156.06596588,0.0003756,7]
[311559304,1705239062782,-150.0,0.0003757,3]
[311559305,1705239062791,-157.28338151,0.00037573,7]
[311559306,1705239062802,-1259.86623338,0.00037579,7]
[311559307,1705239062812,-50000.0,0.000376,30]
[311559308,1705239062822,-175.34065476,0.00037608,7]
[311559309,1705239062832,-1259.86623338,0.00037615,7]
[311559310,1705239062842,-814.08725621,0.00037622,7]
[311559311,1705239062852,-156.06596588,0.00037622,7]
[311559312,1705239062862,-155.93501535,0.00037622,7]
[311559313,1705239062873,-4858.20993382,0.00037628,7]
[311559314,1705239062883,-2501.95426146,0.00037628,7]
[311559315,1705239062894,-3188.94883228,0.00037628,7]
[311559316,1705239062903,-2639.82344324,0.00037628,7]
[311559317,1705239062914,-2037.64592753,0.00037628,7]
[311559318,1705239062924,-157.28338151,0.00037632,7]
[311559319,1705239062934,-157.28338151,0.00037652,7]
[311559320,1705239062944,-155.88867443,0.00037657,7]
[311559321,1705239062955,-379.75846953,0.00037664,7]
[311559322,1705239062965,-423.76252284,0.00037665,7]
[311559323,1705239062975,-379.75846953,0.00037698,7]
[311559324,1705239062985,-200.0,0.000377,2]
[311559325,1705239062994,-20400.0,0.00037721,120]
[311559326,1705239063004,-152.79566131,0.00037723,7]
[311559327,1705239063014,-167.62505345,0.00037725,7]
[311559328,1705239063023,-158.46488988,0.00037731,7]
[311559329,1705239063032,-300.0,0.00037732,2]
[311559330,1705239063041,-300.0,0.00037732,2]
[311559331,1705239063235,-379.75846953,0.00037736,7]
[311559332,1705239063246,-2000.0,0.00037737,2]
[311559333,1705239063257,-1259.86623338,0.00037737,7]
[311559334,1705239063267,-156.35152316,0.00037761,7]
[311559335,1705239063277,-152.0,0.00037766,4]
[311559336,1705239063288,-150.0,0.00037775,120]
[311559337,1705239063298,-171.389841,0.00037791,2]
[311559338,1705239063309,-1003.103259,0.000378,2]
[311559339,1705239063319,-5000.0,0.000378,2]
[311559340,1705239063330,-345600.0,0.000378,2]
[311559341,1705239063341,-432.0,0.000378,7]
[311559342,1705239063352,-378.57658537,0.00037803,7]
[311559343,1705239063362,-2000.8,0.00037805,2]
[311559344,1705239063371,-1603.280317,0.00037808,14]
[311559345,1705239063382,-2381.49,0.00037808,2]
[311559346,1705239063391,-19446.27,0.00037808,2]
[311559347,1705239063400,-160.88936148,0.00037809,7]
[311559348,1705239063409,-167.0,0.0003786,7]
[311559349,1705239063419,-150.0,0.0003786,7]
[311559350,1705239063428,-423.76252284,0.00037862,7]
[311559351,1705239063438,-814.08725621,0.00037869,7]
[311559352,1705239063447,-2000.8,0.0003787,2]
[311559353,1705239063456,-23813.0,0.0003789,3]
[311559354,1705239063465,-601.77,0.000379,2]
[311559355,1705239063475,-300.0,0.000379,2]
[311559356,1705239063485,-433.0,0.000379,27]
[311559357,1705239063494,-631722.20946232,0.000379,3]
[311559358,1705239064677,-150.0,0.00029217,2]
[311559359,1705239064694,-300.0,0.00029248,2]
[311559360,1705239064709,-150.0,0.00029287,2]
[311559361,1705239064723,-150.0,0.00029433,2]
[311559362,1705239064734,-150.0,0.00029534,2]
[311559363,1705239064746,-150.0,0.0002958,2]
[311559364,1705239064760,-150.0,0.00029635,2]
[311559365,1705239064774,-150.0,0.0002969,2]
[311559366,1705239064787,-150.0,0.00029698,2]
[311559367,1705239064799,-150.0,0.00029728,2]
[311559368,1705239064813,-150.0,0.00029778,2]
[311559369,1705239064830,-150.0,0.0002995,2]
[311559370,1705239064843,-150.0,0.00030102,2]
[311559371,1705239064856,-150.0,0.00030122,2]
[311559372,1705239064869,-150.0,0.00030213,2]
[311559373,1705239064882,-150.0,0.00030237,2]
[311559374,1705239064895,-150.0,0.00030279,2]
[311559375,1705239064908,-150.0,0.00030303,2]
[311559376,1705239064921,-150.0,0.00030325,2]
[311559377,1705239064934,-150.0,0.00030417,2]
[311559378,1705239064946,-150.0,0.00030522,2]
[311559379,1705239064960,-150.0,0.0003055,2]
[311559380,1705239064973,-96.58515287,0.00030557,2]
[311559381,1705239064989,-53.41484713,0.00030557,2]
[311559382,1705239065002,-150.0,0.0003077,2]
[311559383,1705239065016,-150.0,0.00030825,2]
[311559384,1705239065030,-150.28,0.00033,2]
[311559385,1705239065043,-150.28,0.00033,2]
[311559386,1705239065056,-150.28,0.00033,2]
[311559387,1705239065070,-150.28,0.00033,2]
[311559388,1705239065084,-150.28,0.00033,2]
[311559389,1705239065097,-150.28,0.00033,2]
[311559390,1705239065110,-150.28,0.00033,2]
[311559391,1705239065123,-150.28,0.00033,2]
[311559392,1705239065136,-150.28,0.00033,2]
[311559393,1705239065149,-150.28,0.00033,2]
[311559394,1705239065161,-150.28,0.00033,2]
[311559395,1705239065174,-150.28,0.00033,2]
[311559396,1705239065187,-150.28,0.00033,2]
[311559397,1705239065200,-150.28,0.00033,2]
[311559398,1705239065213,-150.28,0.00033,2]
[311559399,1705239065226,-150.28,0.00033,2]
[311559400,1705239065239,-150.28,0.00033,2]
[311559401,1705239065252,-150.28,0.00033,2]